fUSD/lending_fUSD_20240923
["ID","MTS","AMOUNT","RATE_DAILY","PERIOD"]
[338987594,1727103041580,-1171.7,0.00012898,2]
[338987595,1727103041591,-1171.7,0.00012898,2]
[338987596,1727103041602,-1171.7,0.00012898,2]
[338987597,1727103041613,-1171.7,0.00012898,2]
[338987598,1727103041624,-500.0,0.00012898,2]
[338987600,1727103041635,-500.0,0.00012898,2]
[338987602,1727103041646,-500.0,0.00012898,2]
[338987604,1727103041658,-500.0,0.00012898,2]
[338987607,1727103041668,-500.0,0.00012898,2]
[338987609,1727103041679,-17719.88,0.00012898,2]
[338987611,1727103041689,-17719.88,0.00012898,2]
[338987613,1727103041700,-17719.88,0.00012898,2]
[338987615,1727103041714,-17719.88,0.00012898,2]
[338987617,1727103041724,-17719.88,0.00012898,2]
[338987619,1727103041735,-17719.88,0.00012898,2]
[338987622,1727103041745,-500.0,0.00012898,2]
[338987624,1727103041756,-500.0,0.00012898,2]
[338987626,1727103041768,-557.21,0.00012898,2]
[338987628,1727103041779,-557.21,0.00012898,2]
[338987630,1727103041789,-557.21,0.00012898,2]
[338987632,1727103041799,-298.31469108,0.00012899,2]
[338987634,1727103041810,-500.0,0.00012899,2]
[338987637,1727103041820,-500.0,0.00012899,2]
[338987639,1727103041831,-500.0,0.00012899,2]
[338987641,1727103041841,-500.0,0.00012899,2]
[338987643,1727103041852,-500.0,0.00012899,2]
[338987645,1727103041863,-500.0,0.00012899,2]
[338987679,1727103042171,-500.0,0.00012899,2]
[338987682,1727103042190,-500.0,0.00012899,2]
[338987684,1727103042202,-167.98108244,0.00012899,2]
[338987686,1727103042213,-500.0,0.00012899,2]
[338987688,1727103042223,-500.0,0.00012899,2]
[338987690,1727103042232,-500.0,0.00012899,2]
[338987692,1727103042243,-500.0,0.00012899,2]
[338987694,1727103042252,-500.0,0.00012899,2]
[338987696,1727103042262,-633.36,0.00012899,2]
[338987698,1727103042271,-500.0,0.00012899,2]
[338987700,1727103042281,-500.0,0.00012899,2]
[338987702,1727103042290,-493.79747805,0.00012899,2]
[338987704,1727103042300,-500.0,0.00012899,2]
[338987706,1727103042311,-277.16,0.00012899,2]
[338987708,1727103042321,-500.0,0.00012899,2]
[338987710,1727103042331,-227.04,0.00012899,2]
[338987712,1727103042341,-500.0,0.00012899,2]
[338987714,1727103042352,-500.0,0.00012899,2]
[338987717,1727103042365,-500.0,0.00012899,2]
[338987719,1727103042375,-500.0,0.00012899,2]
[338987721,1727103042388,-422.0713121,0.00012899,2]
[338987723,1727103042399,-500.0,0.00012899,2]
[338987725,1727103042408,-500.0,0.00012899,2]
[338987727,1727103042417,-500.0,0.00012899,2]
[338987728,1727103042427,-500.0,0.00012899,2]
[338987730,1727103042436,-500.0,0.00012899,2]
[338987733,1727103042446,-500.0,0.00012899,2]
[338987735,1727103042456,-341.38064597,0.00012899,2]
[338987736,1727103042466,-500.0,0.00012899,2]
[338987737,1727103042475,-500.0,0.00012899,2]
[338987738,1727103042487,-500.0,0.00012899,2]
[338987739,1727103042496,-500.0,0.00012899,2]
[338987740,1727103042505,-500.0,0.00012899,2]
[338987741,1727103042515,-500.0,0.00012899,2]
[338987742,1727103042525,-500.0,0.00012899,2]
[338987744,1727103042534,-500.0,0.00012899,2]
[338987746,1727103042544,-500.0,0.00012899,2]
[338987748,1727103042555,-500.0,0.00012899,2]
[338987750,1727103042565,-500.0,0.00012899,2]
[338987752,1727103042575,-500.0,0.00012899,2]
[338987754,1727103042584,-500.0,0.00012899,2]
[338987756,1727103042593,-500.0,0.00012899,2]
[338987758,1727103042603,-500.0,0.00012899,2]
[338987760,1727103042612,-500.0,0.00012899,2]
[338987762,1727103042622,-500.0,0.00012899,2]
[338987764,1727103042631,-500.0,0.00012899,2]
[338987766,1727103042640,-500.0,0.00012899,2]
[338987768,1727103042650,-500.0,0.00012899,2]
[338987771,1727103042661,-500.0,0.00012899,2]
[338987772,1727103042670,-500.0,0.00012899,2]
[338987774,1727103042679,-500.0,0.00012899,2]
[338987776,1727103042688,-500.0,0.00012899,2]
[338987778,1727103042698,-17719.88,0.00012899,2]
[338987780,1727103042708,-1060.36330881,0.00012899,2]
[338987782,1727103042717,-4374.55539912,0.00012899,2]
[338987784,1727103042726,-1060.36330881,0.000129,2]
[338987786,1727103042735,-4374.55539911,0.000129,2]
[338987788,1727103042745,-15105.22,0.000129,2]
[338987790,1727103042755,-165.10266526,0.000129,2]
[338987792,1727103042764,-165.6,0.000129,2]
[338987794,1727103042773,-2000.0,0.000129,2]
[338987796,1727103042782,-200.0,0.000129,2]
[338987798,1727103042792,-2000.0,0.000129,2]
[338987800,1727103042801,-200.0,0.000129,2]
[338987803,1727103042811,-2896.83900672,0.000129,2]
[338987805,1727103042821,-1812.581014,0.000129,2]
[338987807,1727103042831,-2000.0,0.000129,2]
[338987809,1727103042841,-200.0,0.000129,2]
[338987811,1727103042851,-156.38342938,0.000129,2]
[338987813,1727103042860,-156.38342938,0.000129,2]
[338987815,1727103042870,-156.38342938,0.000129,2]
[338987817,1727103042879,-156.38342938,0.000129,2]
[338987819,1727103042889,-156.38342938,0.000129,2]
[338987821,1727103042899,-156.38342938,0.000129,2]
[338987823,1727103042908,-156.38342938,0.000129,2]
[338987825,1727103042918,-156.38342938,0.000129,2]
[338987826,1727103042927,-156.38342938,0.000129,2]
[338987828,1727103042936,-156.88,0.000129,2]
[338987829,1727103042945,-260.17,0.000129,2]
[338987831,1727103042955,-200.0,0.000129,2]
[338987832,1727103042965,-1060.36330881,0.000129,2]
[338987834,1727103042975,-4374.55539911,0.000129,2]
[338987835,1727103042984,-218.811,0.00012928,2]
[338987837,1727103042994,-1000.0,0.00012935,2]
[338987838,1727103043003,-468.5016,0.00012935,2]
[338987840,1727103043012,-449.236586,0.00012942,2]
[338987841,1727103043022,-240.33174,0.00012942,2]
[338987843,1727103043031,-500.0,0.00012973,2]
[338987844,1727103043040,-500.0,0.00012973,2]
[338987846,1727103043050,-407.05673892,0.00012973,2]
[338987847,1727103043059,-300.0,0.00012973,2]
[338987849,1727103043068,-500.0,0.00012973,2]
[338987850,1727103043077,-12000.0,0.00012974,4]
[338987852,1727103043087,-150.0,0.00012989,2]
[338987853,1727103043096,-150.0,0.00012989,2]
[338987856,1727103043106,-1003.0,0.0001299,2]
[338987857,1727103043115,-168.75603804,0.0001299,2]
[338987860,1727103043124,-4527.9350265,0.00012993,2]
[338987862,1727103043134,-342.84,0.00012997,2]
[338987864,1727103043143,-500.0,0.00012997,2]
[338987867,1727103043152,-571.58,0.00012997,2]
[338987868,1727103043161,-500.0,0.00012997,2]
[338987870,1727103043171,-1171.7,0.00012997,2]
[338987871,1727103043179,-17719.88,0.00012997,2]
[338987873,1727103043189,-799.47,0.00012997,2]
[338987875,1727103043198,-870.34,0.00012997,2]
[338987876,1727103043207,-500.0,0.00012998,2]
[338987878,1727103043225,-500.0,0.00012998,2]
[338987879,1727103043234,-500.0,0.00012998,2]
[338987881,1727103043243,-500.0,0.00012998,2]
[338987883,1727103043252,-500.0,0.00012998,2]
[338987884,1727103043261,-500.0,0.00012998,2]
[338987886,1727103043271,-500.0,0.00012998,2]
[338987888,1727103043280,-500.0,0.00012998,2]
[338987889,1727103043289,-500.0,0.00012998,2]
[338987891,1727103043299,-500.0,0.00012998,2]
[338987893,1727103043312,-500.0,0.00012998,2]
[338987894,1727103043322,-500.0,0.00012998,2]
[338987896,1727103043331,-500.0,0.00012998,2]
[338987898,1727103043341,-500.0,0.00012998,2]
[338987899,1727103043351,-500.0,0.00012998,2]
[338987901,1727103043359,-500.0,0.00012998,2]
[338987903,1727103043369,-500.0,0.00012998,2]
[338987904,1727103043379,-500.0,0.00012998,2]
[338987906,1727103043388,-500.0,0.00012998,2]
[338987907,1727103043397,-500.0,0.00012998,2]
[338987909,1727103043408,-500.0,0.00012998,2]
[338987910,1727103043417,-396.77529761,0.00012998,2]
[338987912,1727103043426,-500.0,0.00012998,2]
[338987913,1727103043436,-500.0,0.00012998,2]
[338987915,1727103043446,-500.0,0.00012998,2]
[338987917,1727103043456,-342.84,0.00012998,2]
[338987919,1727103043469,-342.84,0.00012998,2]
[338987920,1727103043478,-500.0,0.00012998,2]
[338987922,1727103043488,-500.0,0.00012998,2]
[338987924,1727103043497,-248.62,0.00012998,2]
[338987925,1727103043506,-500.0,0.00012998,2]
[338987927,1727103043515,-434.16,0.00012998,2]
[338987929,1727103043525,-500.0,0.00012998,2]
[338987930,1727103043534,-500.0,0.00012998,2]
[338987932,1727103043544,-500.0,0.00012998,2]
[338987933,1727103043554,-500.0,0.00012998,2]
[338987935,1727103043564,-500.0,0.00012998,2]
[338987937,1727103043573,-500.0,0.00012998,2]
[338987938,1727103043582,-500.0,0.00012998,2]
[338987939,1727103043590,-500.0,0.00012998,2]
[338987940,1727103043599,-500.0,0.00012998,2]
[338987941,1727103043608,-500.0,0.00012998,2]
[338987942,1727103043617,-500.0,0.00012998,2]
[338987943,1727103043627,-365.04,0.00012998,2]
[338987944,1727103043636,-500.0,0.00012998,2]
[338987945,1727103043646,-605.68,0.00012998,2]
[338987946,1727103043656,-345.12,0.00012998,2]
[338987947,1727103043667,-500.0,0.00012998,2]
[338987949,1727103043676,-500.0,0.00012998,2]
[338987951,1727103043685,-186.3603243,0.00012998,2]
[338987953,1727103043694,-500.0,0.00012998,2]
[338987955,1727103043705,-500.0,0.00012998,2]
[338987957,1727103043716,-633.48,0.00012998,2]
[338987959,1727103043726,-500.0,0.00012998,2]
[338987961,1727103043735,-500.0,0.00012998,2]
[338987963,1727103043743,-500.0,0.00012998,2]
[338987965,1727103043752,-641.64,0.00012998,2]
[338987967,1727103043762,-500.0,0.00012998,2]
[338987969,1727103043771,-500.0,0.00012998,2]
[338987971,1727103043780,-500.0,0.00012998,2]
[338987973,1727103043789,-575.4,0.00012998,2]
[338987975,1727103043798,-500.0,0.00012998,2]
[338987977,1727103043808,-500.0,0.00012998,2]
[338987979,1727103043817,-500.0,0.00012998,2]
[338987981,1727103043827,-571.58,0.00012998,2]
[338987983,1727103043836,-634.18247404,0.00012998,2]
[338987985,1727103043846,-500.0,0.00012998,2]
[338987987,1727103043855,-500.0,0.00012998,2]
[338987989,1727103043864,-500.0,0.00012998,2]
[338987991,1727103043873,-522.32,0.00012998,2]
[338987993,1727103043883,-500.0,0.00012998,2]
[338987995,1727103043892,-500.0,0.00012998,2]
[338987997,1727103043902,-500.0,0.00012998,2]
[338987999,1727103043911,-500.0,0.00012998,2]
[338988001,1727103043920,-500.0,0.00012998,2]
[338988003,1727103043930,-500.0,0.00012998,2]
[338988005,1727103043940,-500.0,0.00012998,2]
[338988007,1727103043949,-500.0,0.00012998,2]
[338988009,1727103043960,-500.0,0.00012998,2]
[338988011,1727103043969,-500.0,0.00012998,2]
[338988013,1727103043978,-500.0,0.00012998,2]
[338988015,1727103043988,-520.28,0.00012998,2]
[338988017,1727103043997,-500.0,0.00012998,2]
[338988019,1727103044007,-500.0,0.00012998,2]
[338988021,1727103044017,-500.0,0.00012998,2]
[338988023,1727103044026,-500.0,0.00012998,2]
[338988025,1727103044036,-500.0,0.00012998,2]
[338988027,1727103044045,-500.0,0.00012998,2]
[338988029,1727103044054,-500.0,0.00012998,2]
[338988031,1727103044063,-500.0,0.00012998,2]
[338988033,1727103044072,-500.0,0.00012998,2]
[338988035,1727103044082,-500.0,0.00012998,2]
[338988037,1727103044093,-500.0,0.00012998,2]
[338988039,1727103044103,-500.0,0.00012998,2]
[338988041,1727103044113,-500.0,0.00012998,2]
[338988043,1727103044123,-500.0,0.00012998,2]
[338988045,1727103044133,-500.0,0.00012998,2]
[338988048,1727103044143,-500.0,0.00012998,2]
[338988049,1727103044152,-500.0,0.00012998,2]
[338988052,1727103044162,-500.0,0.00012998,2]
[338988054,1727103044172,-500.0,0.00012998,2]
[338988056,1727103044181,-500.0,0.00012998,2]
[338988058,1727103044190,-500.0,0.00012998,2]
[338988060,1727103044200,-288.36965262,0.00012998,2]
[338988061,1727103044210,-500.0,0.00012998,2]
[338988064,1727103044219,-500.0,0.00012998,2]
[338988066,1727103044229,-500.0,0.00012998,2]
[338988068,1727103044238,-181.4968725,0.00012998,2]
[338988070,1727103044247,-500.0,0.00012998,2]
[338988072,1727103044256,-500.0,0.00012998,2]
[338988074,1727103044266,-1171.7,0.00012998,2]
[338988076,1727103044276,-1171.7,0.00012998,2]
[338988078,1727103044285,-500.0,0.00012998,2]
[338988080,1727103044295,-500.0,0.00012998,2]
[338988082,1727103044305,-500.0,0.00012998,2]
[338988084,1727103044316,-500.0,0.00012998,2]
[338988085,1727103044325,-500.0,0.00012998,2]
[338988087,1727103044335,-500.0,0.00012998,2]
[338988089,1727103044344,-581.17,0.00012998,2]
[338988091,1727103044354,-17719.88,0.00012998,2]
[338988093,1727103044363,-799.47,0.00012998,2]
[338988096,1727103044373,-799.47,0.00012998,2]
[338988098,1727103044382,-870.34,0.00012998,2]
[338988099,1727103044392,-870.34,0.00012998,2]
[338988101,1727103044401,-8188.23464423,0.00012999,2]
[338988103,1727103044410,-500.0,0.00012999,2]
[338988105,1727103044420,-500.0,0.00012999,2]
[338988107,1727103044430,-500.0,0.00012999,2]
[338988109,1727103044439,-500.0,0.00012999,2]
[338988111,1727103044449,-500.0,0.00012999,2]
[338988113,1727103044458,-500.0,0.00012999,2]
[338988115,1727103044467,-500.0,0.00012999,2]
[338988117,1727103044477,-500.0,0.00012999,2]
[338988119,1727103044486,-500.0,0.00012999,2]
[338988121,1727103044495,-500.0,0.00012999,2]
[338988123,1727103044505,-500.0,0.00012999,2]
[338988125,1727103044514,-500.0,0.00012999,2]
[338988127,1727103044523,-500.0,0.00012999,2]
[338988129,1727103044533,-244.75160924,0.00012999,2]
[338988131,1727103044542,-500.0,0.00012999,2]
[338988133,1727103044551,-500.0,0.00012999,2]
[338988135,1727103044561,-500.0,0.00012999,2]
[338988137,1727103044571,-500.0,0.00012999,2]
[338988139,1727103044580,-500.0,0.00012999,2]
[338988141,1727103044589,-500.0,0.00012999,2]
[338988143,1727103044598,-500.0,0.00012999,2]
[338988145,1727103044608,-228.28228595,0.00012999,2]
[338988147,1727103044618,-500.0,0.00012999,2]
[338988149,1727103044627,-500.0,0.00012999,2]
[338988151,1727103044637,-500.0,0.00012999,2]
[338988153,1727103044646,-500.0,0.00012999,2]
[338988155,1727103044655,-157.95826143,0.00012999,2]
[338988157,1727103044665,-500.0,0.00012999,2]
[338988159,1727103044675,-500.0,0.00012999,2]
[338988161,1727103044684,-500.0,0.00012999,2]
[338988163,1727103044693,-500.0,0.00012999,2]
[338988165,1727103044702,-500.0,0.00012999,2]
[338988167,1727103044712,-342.84,0.00012999,2]
[338988169,1727103044721,-342.84,0.00012999,2]
[338988171,1727103044731,-342.84,0.00012999,2]
[338988173,1727103044742,-342.84,0.00012999,2]
[338988175,1727103044753,-342.84,0.00012999,2]
[338988177,1727103044763,-342.84,0.00012999,2]
[338988179,1727103044772,-342.84,0.00012999,2]
[338988181,1727103044781,-342.84,0.00012999,2]
[338988183,1727103044791,-342.84,0.00012999,2]
[338988186,1727103044801,-342.84,0.00012999,2]
[338988187,1727103044810,-342.84,0.00012999,2]
[338988190,1727103044819,-342.84,0.00012999,2]
[338988192,1727103044831,-342.84,0.00012999,2]
[338988193,1727103044841,-343.02410064,0.00012999,2]
[338988195,1727103044850,-291.2,0.00012999,2]
[338988196,1727103044860,-562.44,0.00012999,2]
[338988197,1727103044869,-404.24,0.00012999,2]
[338988198,1727103044879,-500.0,0.00012999,2]
[338988199,1727103044888,-300.4,0.00012999,2]
[338988200,1727103044898,-500.0,0.00012999,2]
[338988201,1727103044907,-500.0,0.00012999,2]
[338988203,1727103044917,-500.0,0.00012999,2]
[338988205,1727103044926,-500.0,0.00012999,2]
[338988207,1727103044936,-500.0,0.00012999,2]
[338988209,1727103044945,-571.58,0.00012999,2]
[338988211,1727103044954,-500.0,0.00012999,2]
[338988213,1727103044965,-571.58,0.00012999,2]
[338988215,1727103044974,-308.50948126,0.00012999,2]
[338988217,1727103044984,-571.58,0.00012999,2]
[338988219,1727103044993,-571.58,0.00012999,2]
[338988221,1727103045003,-571.58,0.00012999,2]
[338988223,1727103045013,-571.58,0.00012999,2]
[338988225,1727103045022,-571.58,0.00012999,2]
[338988227,1727103045032,-571.58,0.00012999,2]
[338988229,1727103045042,-571.58,0.00012999,2]
[338988231,1727103045051,-571.58,0.00012999,2]
[338988233,1727103045061,-571.58,0.00012999,2]
[338988235,1727103045070,-571.58,0.00012999,2]
[338988237,1727103045080,-571.58,0.00012999,2]
[338988239,1727103045089,-571.75928277,0.00012999,2]
[338988241,1727103045098,-543.76,0.00012999,2]
[338988243,1727103045107,-500.0,0.00012999,2]
[338988245,1727103045117,-500.0,0.00012999,2]
[338988247,1727103045126,-246.32,0.00012999,2]
[338988249,1727103045135,-500.0,0.00012999,2]
[338988251,1727103045145,-615.64,0.00012999,2]
[338988253,1727103045153,-500.0,0.00012999,2]
[338988255,1727103045163,-500.0,0.00012999,2]
[338988257,1727103045172,-500.0,0.00012999,2]
[338988259,1727103045181,-241.4,0.00012999,2]
[338988261,1727103045191,-500.0,0.00012999,2]
[338988263,1727103045200,-457.16,0.00012999,2]
[338988265,1727103045211,-500.0,0.00012999,2]
[338988267,1727103045220,-451.28,0.00012999,2]
[338988269,1727103045230,-500.0,0.00012999,2]
[338988271,1727103045239,-500.0,0.00012999,2]
[338988273,1727103045249,-500.0,0.00012999,2]
[338988275,1727103045257,-500.0,0.00012999,2]
[338988277,1727103045266,-500.0,0.00012999,2]
[338988279,1727103045276,-500.0,0.00012999,2]
[338988281,1727103045285,-599.60900821,0.00012999,2]
[338988294,1727103045294,-210.04,0.00012999,2]
[338988299,1727103045440,-500.0,0.00012999,2]
[338988301,1727103045451,-500.0,0.00012999,2]
[338988303,1727103045460,-1171.7,0.00012999,2]
[338988305,1727103045469,-1171.7,0.00012999,2]
[338988307,1727103045479,-1171.7,0.00012999,2]
[338988309,1727103045488,-1171.7,0.00012999,2]
[338988311,1727103045498,-1171.7,0.00012999,2]
[338988313,1727103045508,-1171.7,0.00012999,2]
[338988315,1727103045518,-1171.7,0.00012999,2]
[338988318,1727103045530,-1171.7,0.00012999,2]
[338988320,1727103045540,-1171.7,0.00012999,2]
[338988321,1727103045550,-1171.7,0.00012999,2]
[338988324,1727103045559,-1171.7,0.00012999,2]
[338988326,1727103045569,-1171.7,0.00012999,2]
[338988328,1727103045578,-1171.7,0.00012999,2]
[338988330,1727103045588,-1171.89,0.00012999,2]
[338988332,1727103045597,-17719.88,0.00012999,2]
[338988334,1727103045606,-17719.88,0.00012999,2]
[338988336,1727103045615,-16809.15354372,0.00012999,2]
[338988339,1727103045633,-910.72645628,0.00012999,2]
[338988341,1727103045643,-17719.88,0.00012999,2]
[338988343,1727103045652,-7508.76287259,0.00012999,2]
[338988345,1727103045665,-5979.78453988,0.00012999,2]
[338988365,1727103045831,-557.21,0.00012898,2]
[338988368,1727103045841,-557.21,0.00012898,2]
[338988372,1727103045851,-557.21,0.00012898,2]
[338988376,1727103045860,-557.21,0.00012899,2]
[338988381,1727103045870,-500.0,0.00012997,2]
[338988384,1727103045881,-557.21,0.00012997,2]
[338988387,1727103045890,-500.0,0.00012998,2]
[338988390,1727103045899,-411.19475001,0.00012998,2]
[338988393,1727103045911,-88.80524999,0.00012998,2]
[338988396,1727103045920,-557.21,0.00012998,2]
[338988399,1727103045930,-4231.33258753,0.00012999,2]
[338988402,1727103045940,-17719.88,0.00012999,2]
[338988405,1727103045949,-17719.88,0.00012999,2]
[338988409,1727103045960,-17719.88,0.00012999,2]
[338988412,1727103045969,-4474.88706107,0.00012999,2]
[338988414,1727103045986,-13244.99293893,0.00012999,2]
[338988416,1727103045995,-8544.94920245,0.00012999,2]
[338988440,1727103046170,-1466.786944,0.00012833,2]
[338988442,1727103046180,-4891.87628104,0.00012999,2]
[338988445,1727103046196,-4283.05451651,0.00012999,2]
[338988447,1727103046205,-17719.88,0.00012999,2]
[338988449,1727103046216,-17719.88,0.00012999,2]
[338988451,1727103046226,-17719.88,0.00012999,2]
[338988453,1727103046235,-322.32571285,0.00012999,2]
[338988455,1727103046246,-377.59544964,0.00012999,2]
[338988458,1727103046262,-17020.08883751,0.00012999,2]
[338988460,1727103046272,-799.47,0.00012999,2]
[338988462,1727103046282,-799.47,0.00012999,2]
[338988464,1727103046291,-799.47,0.00012999,2]
[338988466,1727103046300,-799.47,0.00012999,2]
[338988468,1727103046313,-799.47,0.00012999,2]
[338988470,1727103046322,-799.47,0.00012999,2]
[338988472,1727103046331,-799.47,0.00012999,2]
[338988474,1727103046340,-799.47,0.00012999,2]
[338988476,1727103046350,-799.47,0.00012999,2]
[338988478,1727103046359,-122.75508554,0.00012999,2]
[338988480,1727103046371,-676.71491446,0.00012999,2]
[338988482,1727103046380,-799.47,0.00012999,2]
[338988484,1727103046390,-799.47,0.00012999,2]
[338988486,1727103046400,-799.69,0.00012999,2]
[338988488,1727103046409,-870.34,0.00012999,2]
[338988490,1727103046418,-870.34,0.00012999,2]
[338988492,1727103046428,-870.34,0.00012999,2]
[338988494,1727103046437,-870.34,0.00012999,2]
[338988496,1727103046447,-870.34,0.00012999,2]
[338988498,1727103046456,-870.34,0.00012999,2]
[338988500,1727103046473,-479.08724592,0.00012999,2]
[338988502,1727103046484,-316.75,0.00012999,2]
[338988504,1727103046496,-74.50275408,0.00012999,2]
[338988506,1727103046505,-870.34,0.00012999,2]
[338988508,1727103046515,-870.34,0.00012999,2]
[338988510,1727103046524,-870.34,0.00012999,2]
[338988512,1727103046533,-870.34,0.00012999,2]
[338988514,1727103046542,-870.34,0.00012999,2]
[338988516,1727103046551,-870.57,0.00012999,2]
[338988518,1727103046561,-500.0,0.00012999,2]
[338988520,1727103046570,-500.0,0.00012999,2]
[338988522,1727103046579,-500.0,0.00012999,2]
[338988524,1727103046587,-500.0,0.00012999,2]
[338988526,1727103046596,-500.0,0.00012999,2]
[338988528,1727103046605,-557.21,0.00012999,2]
[338988530,1727103046614,-500.0,0.00012999,2]
[338988532,1727103046623,-557.21,0.00012999,2]
[338988534,1727103046632,-500.0,0.00012999,2]
[338988536,1727103046642,-557.21,0.00012999,2]
[338988538,1727103046651,-500.0,0.00012999,2]
[338988540,1727103046662,-557.21,0.00012999,2]
[338988542,1727103046671,-500.0,0.00012999,2]
[338988544,1727103046681,-557.21,0.00012999,2]
[338988546,1727103046690,-500.0,0.00012999,2]
[338988548,1727103046701,-557.21,0.00012999,2]
[338988551,1727103046715,-500.0,0.00012999,2]
[338988553,1727103046725,-557.21,0.00012999,2]
[338988555,1727103046736,-557.21,0.00012999,2]
[338988557,1727103046745,-235.31,0.00012999,2]
[338988558,1727103046754,-557.21,0.00012999,2]
[338988561,1727103046763,-557.21,0.00012999,2]
[338988563,1727103046773,-8414.99372593,0.00013,2]
[338988565,1727103046784,-4310.63802134,0.00013,2]
[338988918,1727103093403,500.0,9.724e-05,2]
[338988919,1727103093508,500.0,9.724e-05,2]
[338988920,1727103094994,500.0,0.00011094,2]
[338988921,1727103122327,152.76,9.589e-05,2]
[338988922,1727103141900,3870.0,0.000102,5]
[338988923,1727103337335,500.0,9.724e-05,2]
[338988924,1727103482456,329.95,0.0001001,2]
[338988925,1727103502041,1050.0,0.00011,2]
[338988931,1727103693208,152.76,9.589e-05,2]
[338988932,1727103889648,150.42,0.00011101,2]
[338988969,1727104057655,248.92,0.00010959,2]
[338988976,1727104183658,313.45,9.531e-05,2]
[338988979,1727104232243,-150.02,0.00011474,2]
[338988980,1727104232253,-250.0,0.00011484,2]
[338988981,1727104232262,-150.02,0.00011521,2]
[338988982,1727104232271,-4308.203,0.00011531,2]
[338988983,1727104232281,-255.0,0.00011631,2]
[338988984,1727104232291,-550.95,0.00011631,2]
[338988985,1727104232300,-150.0,0.00011688,2]
[338988986,1727104232310,-150.0,0.00011688,2]
[338988987,1727104232319,-150.0,0.00011688,2]
[338988988,1727104232329,-151.55024572,0.00011688,2]
[338988989,1727104232340,-151.18089716,0.00011688,2]
[338988990,1727104232350,-150.66099431,0.00011688,2]
[338988991,1727104232359,-244.25,0.00011697,2]
[338988992,1727104232369,-150.02,0.00011712,2]
[338988993,1727104232378,-3120.08,0.00011722,2]
[338988994,1727104232388,-250.0,0.00011744,2]
[338988995,1727104232397,-1500.0,0.00011795,2]
[338988996,1727104232406,-313.45,0.00011795,2]
[338988997,1727104232415,-242.03,0.00011815,2]
[338988998,1727104232424,-150.02,0.0001183,2]
[338988999,1727104232434,-222.0,0.00011839,2]
[338989000,1727104232443,-499.99,0.0001184,2]
[338989001,1727104232452,-150.0,0.00011915,2]
[338989002,1727104232461,-790.19,0.00011915,2]
[338989003,1727104232470,-1000.0,0.0001192,2]
[338989004,1727104232479,-150.02,0.00011993,2]
[338989005,1727104232488,-150.0,0.00012002,2]
[338989006,1727104232497,-615.36,0.00012003,2]
[338989007,1727104232506,-500.0,0.00012003,2]
[338989008,1727104232516,-500.0,0.00012003,2]
[338989009,1727104232526,-500.0,0.00012003,2]
[338989010,1727104232536,-500.0,0.00012003,2]
[338989011,1727104232545,-500.0,0.00012003,2]
[338989012,1727104232554,-500.0,0.00012003,2]